bitfinex/quotes_SOLUSD_20250819
["timestamp","ask_amount","ask_price","bid_price","bid_amount"]
[1755607558435,66.66636626,182.28,182.27,0.2]
[1755607558652,73.23569473,182.28,182.27,0.2]
[1755607558861,79.1450232,182.28,182.27,0.2]
[1755607559574,73.23569473,182.28,182.27,0.2]
[1755607560247,69.17769174,182.28,182.27,0.2]
[1755607560442,73.22936179,182.28,182.27,0.2]
[1755607560687,79.13869026,182.28,182.27,0.2]
[1755607561007,75.08702021,182.28,182.27,0.2]
[1755607561167,79.13848597,182.28,182.27,0.2]
[1755607561552,67.31982903,182.28,182.27,0.2]
[1755607561881,79.13848597,182.28,182.27,0.2]
[1755607562467,75.08702021,182.28,182.27,0.2]
[1755607562663,79.13775266,182.28,182.27,0.2]
[1755607562980,82.00057958,182.28,182.27,0.2]
[1755607566376,76.09125111,182.28,182.27,0.2]
[1755607566581,75.43125111,182.28,182.27,0.2]
[1755607567265,82.00057958,182.28,182.27,0.2]
[1755607568189,26.0,182.24,182.21,0.71]
[1755607568483,26.0,182.24,182.21,0.03]
[1755607568484,5.90932847,182.22,182.21,0.03]
[1755607568782,9.96339456,182.22,182.21,0.03]
[1755607568967,25.06961013,182.22,182.21,0.03]
[1755607570355,30.55748193,182.22,182.21,0.03]
[1755607572055,30.55748193,182.22,182.21,0.71]
[1755607573679,30.55748193,182.22,182.21,0.03]
[1755607574067,38.56,182.22,182.21,0.71]
[1755607574270,49.95720027,182.22,182.21,0.71]
[1755607575566,48.1056239,182.22,182.21,0.71]
[1755607575968,54.01495237,182.22,182.21,0.71]
[1755607576571,48.1056239,182.22,182.21,0.71]
[1755607576775,49.95720027,182.22,182.21,0.71]
[1755607577589,44.0478718,182.22,182.21,0.71]
[1755607577761,49.95720027,182.22,182.21,0.71]
[1755607578365,54.0172501,182.22,182.21,0.71]
[1755607579170,49.95720027,182.22,182.21,0.71]
[1755607579409,54.017764,182.22,182.21,0.71]
[1755607579767,54.01787334,182.22,182.21,0.71]
[1755607579966,54.73787334,182.22,182.21,0.03]
[1755607580267,54.01787334,182.22,182.21,0.03]
[1755607581372,73.50203778,182.22,182.21,0.03]
[1755607583399,76.36574309,182.22,182.21,0.03]
[1755607585393,72.30507002,182.22,182.21,0.03]
[1755607585607,76.37748675,182.22,182.21,0.03]
[1755607585976,72.30507002,182.22,182.21,0.03]
[1755607586875,76.38000904,182.22,182.21,0.03]
[1755607587081,72.30507002,182.22,182.21,0.03]
[1755607587282,76.37977392,182.22,182.21,0.03]
[1755607587890,72.30507002,182.22,182.21,0.03]
[1755607588090,76.38153652,182.22,182.21,0.03]
[1755607588289,72.30507002,182.22,182.21,0.03]
[1755607590108,15.10621557,182.21,182.19,0.03]
[1755607590283,63.17349291,182.2,182.19,0.03]
[1755607590606,63.17349291,182.2,182.18,0.2]
[1755607590607,15.10621557,182.19,182.18,0.2]
[1755607590833,34.24263783,182.19,182.18,0.2]
[1755607591023,34.96263783,182.19,182.18,0.2]
[1755607592236,34.96245544,182.19,182.18,0.2]
[1755607593029,34.96058434,182.19,182.18,0.2]
[1755607594135,15.10621557,182.15,182.1,0.68]
[1755607594463,46.23626485,182.14,182.11,0.68]
[1755607594602,7.73626485,182.13,182.11,0.68]
[1755607594807,42.55831598,182.12,182.11,0.68]
[1755607595024,51.70714998,182.12,182.11,0.68]
[1755607595409,57.61647845,182.12,182.11,0.68]
[1755607597628,57.61647845,182.12,182.09,0.68]
[1755607597831,5.90932847,182.1,182.03,37.40285025]
[1755607598035,5.90932847,182.08,182.03,31.49352178]
[1755607598235,44.40932847,182.08,182.03,31.49352178]
[1755607598540,44.40932847,182.08,182.04,0.72]
[1755607600255,5.90932847,182.06,182.04,0.72]
[1755607600431,44.42932847,182.06,182.04,0.72]
[1755607600752,38.52,182.06,182.04,0.72]
[1755607602331,44.42932847,182.06,182.04,0.72]
[1755607603146,5.90932847,182.05,182.01,5.49416742]
[1755607603642,38.5,182.04,182.01,5.49416742]
[1755607603846,38.5,182.04,182.02,0.72]
[1755607605220,38.5,182.04,182.03,0.72]
[1755607606042,44.40932847,182.04,182.03,0.72]
[1755607606733,38.5,182.04,182.03,0.72]
[1755607606925,44.40932847,182.04,182.03,0.72]
[1755607607834,38.5,182.04,182.03,0.72]
[1755607612543,44.40932847,182.04,182.01,6.21409574]
[1755607612853,44.40932847,182.04,182.02,0.72]
[1755607613635,6.56932847,182.03,182.0,0.75]
[1755607613834,38.46,182.02,182.0,0.75]
[1755607616438,44.36932847,182.02,182.0,0.75]
[1755607617559,44.36932847,182.02,182.0,0.03]
[1755607617934,45.02932847,182.02,182.0,0.03]
[1755607618135,6.56932847,182.01,182.0,0.03]
[1755607619757,12.06353208,182.01,182.0,0.03]
[1755607620259,6.56932847,182.01,182.0,0.03]
[1755607620439,12.06353208,182.01,182.0,0.03]
[1755607622376,26.66,182.03,182.0,0.03]
[1755607622666,6.56932847,182.01,182.0,0.03]
[1755607623961,5.90932847,182.01,182.0,0.03]
[1755607624150,44.34932847,182.01,182.0,0.75]
[1755607624531,38.44,182.01,182.0,0.75]
[1755607630445,38.44,182.01,182.0,0.03]
[1755607630846,38.44,182.01,182.0,0.74]
[1755607631752,38.44,182.01,182.0,0.03]
[1755607632262,45.05932847,182.01,182.0,0.03]
[1755607632852,44.34932847,182.01,182.0,0.03]
[1755607633256,38.44,182.01,182.0,0.03]
[1755607634245,45.05932847,182.01,182.0,0.03]
[1755607634446,44.34932847,182.01,182.0,0.03]
[1755607635280,45.05932847,182.01,182.0,0.03]
[1755607635944,54.61806989,182.01,182.0,0.03]
[1755607636343,54.2149842,182.01,182.0,0.03]
[1755607636544,58.28287141,182.01,182.0,0.03]
[1755607637659,46.87933933,182.01,182.0,0.03]
[1755607637992,52.7886678,182.01,182.0,0.03]
[1755607640557,58.28287141,182.01,182.0,0.03]
[1755607640881,52.7886678,182.01,182.0,0.03]
[1755607641764,14.3486678,182.01,182.0,0.03]
[1755607642077,49.20721568,182.01,182.0,0.03]
[1755607642276,52.8686678,182.01,182.0,0.03]
[1755607642659,52.1586678,182.01,182.0,0.03]
[1755607642865,13.6386678,182.01,182.0,0.03]
[1755607643069,48.49721568,182.01,182.0,0.03]
[1755607643591,49.20721568,182.01,182.0,0.03]
[1755607643799,52.8737818,182.01,182.0,0.03]
[1755607644002,52.1637818,182.01,182.0,0.03]
[1755607644293,46.25445333,182.01,182.0,0.03]
[1755607644469,52.1637818,182.01,182.0,0.03]
[1755607644670,38.52,182.01,182.0,0.74]
[1755607645108,44.42932847,182.01,182.0,0.74]
[1755607645390,48.50550209,182.01,182.0,0.74]
[1755607645968,44.42932847,182.01,182.0,0.74]
[1755607646195,48.50550209,182.01,182.0,0.03]
[1755607646387,52.88463596,182.01,182.0,0.03]
[1755607648574,52.88562233,182.01,182.0,0.03]
[1755607648806,58.37982594,182.01,182.0,0.03]
[1755607649578,84.37982594,182.01,182.0,0.03]
[1755607649783,87.24665118,182.01,182.0,0.03]
[1755607650504,26.0,181.99,181.98,0.03]
[1755607650801,39.6535516,181.99,181.98,0.03]
[1755607651007,74.64441773,181.99,181.98,0.03]
[1755607651184,78.3123554,181.99,181.98,0.03]
[1755607651385,72.40302693,181.99,181.98,0.03]
[1755607651610,78.3123554,181.99,181.98,0.03]
[1755607651907,78.31235269,181.99,181.98,0.03]
[1755607652272,79.02235269,181.99,181.98,0.03]
[1755607652509,84.51716009,181.99,181.98,0.03]
[1755607653277,78.31235269,181.99,181.98,0.03]
[1755607653685,78.31235269,181.99,181.98,0.74]
[1755607653882,4.07508655,181.99,181.98,6.23510935]
[1755607654103,38.66,181.99,181.98,6.23510935]
[1755607654608,38.66,181.99,181.98,0.74]
[1755607654799,38.66,181.99,181.98,6.23510935]
[1755607654998,5.90932847,182.02,181.98,6.23510935]
[1755607655182,4.0755746,182.01,181.98,5.52510935]
[1755607655383,38.66,182.01,181.99,0.71]
[1755607655901,38.66,182.01,182.0,5.49450549]
[1755607656121,4.07603069,182.01,182.0,5.49450549]
[1755607656413,4.07603069,182.01,182.0,6.20450549]
[1755607656582,38.66,182.03,182.0,6.20450549]
[1755607656915,4.07697335,182.02,182.01,0.71]
[1755607657275,4.07697335,182.02,182.01,6.20420361]
[1755607657482,2.86554157,182.08,182.01,12.11353208]
[1755607657688,7.74838075,182.07,182.03,5.90932847]
[1755607657885,0.71,182.1,182.01,19.22971264]
[1755607657886,4.07843189,182.06,182.04,0.68]
[1755607658089,3.67032197,182.08,182.05,5.90932847]
[1755607658386,4.07824433,182.07,182.06,6.58932847]
[1755607659419,38.74,182.09,182.06,12.08202318]
[1755607659582,4.07635236,182.08,182.07,0.68]
[1755607660413,38.74,182.09,182.07,6.58932847]
[1755607660590,38.74,182.09,182.08,5.90932847]
[1755607660792,42.81521269,182.09,182.08,6.58932847]
[1755607661206,42.81521269,182.09,182.06,6.17269471]
[1755607661519,38.74,182.09,182.07,0.68]
[1755607662099,0.71,182.08,182.05,5.90932847]
[1755607662288,4.78322666,182.08,182.05,6.58932847]
[1755607662618,4.07322666,182.08,182.05,6.58932847]
[1755607663397,38.74,182.09,182.05,6.58932847]
[1755607663589,4.07128755,182.08,182.05,6.58932847]
[1755607663785,39.47,182.07,182.03,0.68]
[1755607664014,4.07057566,182.06,182.03,0.68]
[1755607665084,4.07057566,182.06,182.04,12.08262133]
[1755607665910,4.07057566,182.06,182.04,0.68]
[1755607666220,4.07057566,182.06,182.04,6.58932847]
[1755607666606,4.07057566,182.06,182.04,11.40253782]
[1755607666801,38.76,182.07,182.05,0.68]
[1755607667209,38.76,182.07,182.04,11.40253782]
[1755607667421,38.76,182.07,182.04,12.08253782]
[1755607669022,38.76,182.07,182.05,12.08228454]
[1755607669205,38.76,182.07,182.05,11.40228454]
[1755607669403,38.76,182.07,182.06,0.68]
[1755607669723,38.76,182.07,182.06,6.58932847]
[1755607669928,38.78,182.09,182.06,6.58932847]
[1755607670093,38.78,182.09,182.08,5.90932847]
[1755607670292,38.78,182.09,182.08,6.58932847]
[1755607670898,38.78,182.09,182.08,12.08141985]
[1755607672529,38.78,182.09,182.08,11.40141985]
[1755607674732,0.06,182.09,182.08,5.49209138]
[1755607676600,0.06,182.09,182.08,11.40141985]
[1755607676802,0.06,182.09,182.08,12.08141985]
[1755607680110,0.06,182.09,182.08,6.17209138]
[1755607680424,0.77,182.09,182.06,26.0]
[1755607680728,45.33932847,182.09,182.05,26.0]
[1755607681029,0.71,182.08,182.05,26.0]
[1755607681626,0.71,182.08,182.04,5.49319734]
[1755607682536,0.71,182.08,182.03,31.49350036]
[1755607682704,5.90932847,182.06,182.0,5.93932847]
[1755607682903,39.37,182.05,182.0,12.1138249]
[1755607683125,39.37,182.05,182.01,26.68]
[1755607683436,39.37,182.05,182.01,32.58932847]
[1755607683634,39.37,182.05,182.01,26.68]
[1755607683940,39.37,182.05,182.01,32.58932847]
[1755607684405,38.66,182.05,182.02,6.58932847]
[1755607684604,38.66,182.05,182.03,6.58932847]
[1755607684810,38.66,182.05,182.04,6.17329817]
[1755607685111,38.66,182.05,182.04,12.08262664]
[1755607685715,38.66,182.05,182.04,6.17329817]
[1755607686120,38.66,182.05,182.04,5.49329817]
[1755607691728,5.96932847,182.09,182.04,12.08262664]
[1755607691729,39.36,182.08,182.04,12.08262664]
[1755607691923,39.36,182.08,182.05,6.58932847]
[1755607692141,39.36,182.08,182.05,5.90932847]
[1755607692316,39.36,182.08,182.04,6.17329817]
[1755607692518,39.36,182.08,182.05,5.90932847]
[1755607692735,38.64,182.08,182.05,5.90932847]
[1755607692926,0.72,182.07,182.04,12.08262664]
[1755607694928,38.64,182.08,182.06,5.49269471]
[1755607695128,39.36,182.08,182.06,5.49269471]
[1755607695527,0.72,182.07,182.06,5.49269471]
[1755607697038,14.36175884,182.07,182.01,5.49420361]
[1755607697238,10.69911812,182.06,182.01,5.49420361]
[1755607697447,4.06978965,182.05,182.01,5.49420361]
[1755607697747,0.72,182.04,182.01,5.49420361]
[1755607697949,4.78978965,182.04,182.03,26.0]
[1755607698321,49.29911812,182.04,182.0,5.52445803]
[1755607698520,4.78978965,182.03,182.0,0.03]
[1755607698743,10.69911812,182.03,182.0,0.03]
[1755607699032,0.72,182.02,182.0,0.03]
[1755607699219,6.62932847,182.02,182.0,0.03]
[1755607699418,9.98994914,182.01,182.0,0.03]
[1755607699638,10.70994914,182.01,182.0,0.03]
[1755607699837,6.62932847,182.01,182.0,0.03]
[1755607700019,10.70920188,182.01,182.0,0.03]
[1755607702749,49.30920188,182.01,182.0,0.03]
[1755607705252,42.67798176,182.01,182.0,0.03]
[1755607705426,38.6,182.01,182.0,0.03]
[1755607706445,39.32,182.01,182.0,0.03]
[1755607707029,45.22932847,182.01,182.0,0.03]
[1755607707234,49.3047202,182.01,182.0,0.03]
[1755607707632,58.46613548,182.01,182.0,0.03]
[1755607708031,54.39074375,182.01,182.0,0.03]
[1755607708353,58.46473974,182.01,182.0,0.03]
[1755607709132,58.46383137,182.01,182.0,0.03]
[1755607710130,60.66617137,182.01,182.0,0.03]
[1755607710944,71.69929932,182.01,182.0,0.03]
[1755607711125,75.76979464,182.01,182.0,0.03]
[1755607712046,101.76979464,182.01,182.0,0.03]
[1755607712828,75.76979464,182.01,182.0,0.03]
[1755607714245,71.69929932,182.01,182.0,0.03]
[1755607714451,75.7644164,182.01,182.0,0.03]
[1755607716349,75.76992287,182.01,182.0,0.03]
[1755607717148,15.43437883,182.01,182.0,0.03]
[1755607717346,86.60375557,182.01,182.0,0.03]
[1755607717857,56.53308375,182.01,182.0,0.03]
[1755607718043,86.60197617,182.01,182.0,0.03]
[1755607718357,59.88201849,182.01,182.0,0.03]
[1755607718666,42.60893474,182.01,182.0,0.71]
[1755607719358,42.60893474,182.01,182.0,0.03]
[1755607719559,42.60893474,182.01,182.0,0.71]
[1755607719751,38.54,182.01,182.0,0.71]
[1755607720663,50.64353208,182.01,182.0,0.03]
[1755607720839,54.71207191,182.01,182.0,0.03]
[1755607721356,58.37478637,182.01,182.0,0.03]
[1755607721558,43.30853983,182.01,182.0,0.03]
[1755607722075,42.60853983,182.01,182.0,0.03]
[1755607722261,11.46233675,182.05,182.0,6.61932847]
[1755607722462,42.61165496,182.04,182.0,5.93932847]
[1755607722766,4.07165496,182.03,182.01,0.68]
[1755607722969,38.54,182.02,182.01,0.68]
[1755607723273,38.54,182.02,182.0,0.03]
[1755607723439,38.54,182.02,182.0,0.71]
[1755607724333,38.54,182.02,182.0,0.03]
[1755607725154,0.7,182.01,182.0,0.03]
[1755607725351,10.6824007,182.01,182.0,0.03]
[1755607725742,12.8846197,182.01,182.0,0.03]
[1755607725946,4.77307223,182.01,182.0,0.03]
[1755607726262,19.84275436,182.01,182.0,0.03]
[1755607726455,60.94846741,182.01,182.0,0.03]
[1755607726959,60.94846575,182.01,182.0,0.03]
[1755607731457,61.00846575,182.01,182.0,0.03]
[1755607733982,35.00846575,182.01,182.0,0.03]
[1755607735360,30.9356261,182.01,182.0,0.03]
[1755607735563,35.01596776,182.01,182.0,0.03]
[1755607736182,35.01592344,182.01,182.0,0.03]
[1755607736985,35.01592344,182.01,182.0,1e-08]
[1755607737159,39.60234078,182.01,182.0,1e-08]
[1755607737358,41.80516578,182.01,182.0,1e-08]
[1755607737765,41.10621557,181.99,181.98,0.03]
[1755607737981,93.30171983,181.99,181.98,0.03]
[1755607738170,94.00171983,181.99,181.98,0.03]
[1755607738861,99.49652723,181.99,181.98,0.03]
[1755607740200,99.49652723,181.99,181.86,5.37764978]
[1755607740201,26.0,181.91,181.88,0.68]
[1755607740361,38.54,181.9,181.88,0.68]
[1755607740659,38.6,181.89,181.88,0.68]
[1755607743191,50.00717126,181.89,181.83,5.90932847]
[1755607743379,50.00717126,181.89,181.85,0.68]
[1755607743781,44.50932847,181.89,181.86,0.68]
[1755607744012,70.50932847,181.89,181.87,0.68]
[1755607745000,5.90932847,181.88,181.84,0.03]
[1755607745209,5.90932847,181.86,181.84,0.71]
[1755607745410,38.6,181.85,181.84,0.03]
[1755607745581,38.58,181.85,181.84,0.03]
[1755607745995,38.58,181.85,181.84,0.71]
[1755607747667,28.86894128,181.89,181.84,0.71]
[1755607747871,38.66,181.88,181.84,6.20919407]
[1755607748103,38.66,181.88,181.85,0.69]
[1755607748479,38.66,181.88,181.87,0.03]
[1755607748680,5.90932847,181.93,181.87,6.62932847]
[1755607748892,11.46504181,181.96,181.88,0.69]
[1755607749115,6.94285851,181.95,181.9,5.90932847]
[1755607749308,9.98458156,181.94,181.91,0.69]
[1755607749615,41.72760542,181.95,181.91,0.69]
[1755607749616,38.84,181.93,181.91,0.69]
[1755607749900,38.84,181.93,181.88,5.90932847]
[1755607750078,0.72,181.94,181.89,12.09714081]
[1755607750274,38.84,181.93,181.9,6.59932847]
[1755607750492,38.84,181.93,181.9,0.69]
[1755607750794,39.56,181.93,181.9,0.69]
[1755607751277,39.56,181.93,181.91,0.69]
[1755607751278,38.84,181.93,181.91,0.69]
[1755607751597,38.84,181.93,181.92,0.69]
[1755607751801,40.99296945,181.95,181.9,0.69]
[1755607751998,46.60533951,181.94,181.91,0.69]
[1755607752198,50.98569233,181.94,181.89,0.69]
[1755607752392,5.90932847,181.9,181.87,0.03]
[1755607752595,5.90932847,181.9,181.75,10.32358201]
[1755607752596,41.10621557,181.85,181.75,0.32358201]
[1755607752778,5.90932847,181.76,181.75,0.32358201]
[1755607752979,67.65507839,181.76,181.75,0.32358201]
[1755607753321,7.73652848,181.76,181.75,1.01358201]
[1755607753526,38.98,181.76,181.75,1.01358201]
[1755607753697,38.98,181.76,181.75,0.32358201]
[1755607754018,13.760763,181.79,181.75,6.92291048]
[1755607754202,5.90932847,181.8,181.77,5.90932847]
[1755607754203,26.0,181.8,181.77,5.90932847]
[1755607754377,26.0,181.81,181.78,6.59932847]
[1755607754705,39.08,181.8,181.79,0.69]
[1755607754891,39.08,181.8,181.77,0.69]
[1755607755100,5.90932847,181.78,181.75,0.32358201]
[1755607755284,5.90932847,181.76,181.75,0.32358201]
[1755607755474,26.0,181.77,181.75,0.32358201]
[1755607755778,45.04932847,181.76,181.75,0.32358201]
[1755607755980,64.9370331,181.76,181.75,0.32358201]
[1755607756228,70.43879366,181.76,181.75,0.32358201]
[1755607756436,74.09344985,181.76,181.75,0.32358201]
[1755607756923,70.43879366,181.76,181.75,0.32358201]
[1755607757081,31.29879366,181.76,181.75,0.32358201]
[1755607757282,75.15081753,181.76,181.75,0.32358201]
[1755607757487,4.06148906,181.76,181.75,1.01358201]
[1755607757694,43.26148906,181.76,181.75,0.32358201]
[1755607757898,49.17081753,181.76,181.75,0.32358201]
[1755607758114,49.89081753,181.76,181.75,0.32358201]
[1755607758421,64.58946519,181.76,181.75,0.32358201]
[1755607758600,25.38946519,181.76,181.75,0.32358201]
[1755607758808,64.72946519,181.76,181.75,0.32358201]
[1755607759107,30.06148906,181.76,181.75,1.01358201]
[1755607759319,43.46148906,181.76,181.75,1.01358201]
[1755607759684,4.06148906,181.76,181.75,6.51564528]
[1755607759921,39.42,181.76,181.75,12.42497375]
[1755607760124,39.42,181.76,181.75,6.51564528]
[1755607760290,43.46564419,181.76,181.75,1.01358201]
[1755607760822,39.42,181.76,181.75,6.92291048]
[1755607760994,39.42,181.76,181.75,12.42497375]
[1755607761401,21.32526952,181.85,181.75,12.42497375]
[1755607761590,43.50469517,181.84,181.81,5.90932847]
[1755607761802,43.50469517,181.84,181.75,5.82564528]
[1755607761803,4.04469517,181.83,181.82,0.69]
[1755607762016,39.46,181.83,181.82,6.59932847]
[1755607762314,0.06,181.88,181.82,12.09927347]
[1755607762515,43.50647223,181.87,181.83,0.69]
[1755607762715,9.9558007,181.86,181.83,0.69]
[1755607762925,9.9558007,181.86,181.82,0.69]
[1755607762926,4.04647223,181.85,181.82,0.69]
[1755607763117,43.54647223,181.84,181.82,0.69]
[1755607763418,4.04647223,181.83,181.82,0.69]
[1755607763734,4.04647223,181.83,181.79,6.19073337]
[1755607763890,4.04647223,181.82,181.8,0.69]
[1755607764096,43.56555462,181.81,181.78,0.69]
[1755607764400,43.54555462,181.8,181.78,0.69]
[1755607764615,39.5,181.79,181.77,11.4105761]
[1755607764795,39.5,181.79,181.75,5.82535486]
[1755607765001,0.72,181.78,181.75,0.32358201]
[1755607765201,5.90932847,181.77,181.75,0.32358201]
[1755607765396,43.544725,181.76,181.75,0.32358201]
[1755607765592,49.45405347,181.76,181.75,0.32358201]
[1755607765834,50.17405347,181.76,181.75,0.32358201]
[1755607766033,65.28026904,181.76,181.75,0.32358201]
[1755607766200,70.7820296,181.76,181.75,0.32358201]
[1755607766527,44.264725,181.76,181.75,0.32358201]
[1755607766702,43.564725,181.76,181.75,0.32358201]
[1755607767096,49.47405347,181.76,181.75,0.32358201]
[1755607767305,55.69581403,181.76,181.75,0.32358201]
[1755607767502,50.19405347,181.76,181.75,0.32358201]
[1755607768194,49.47405347,181.76,181.75,0.32358201]
[1755607768905,55.69581403,181.76,181.75,0.32358201]
[1755607769124,70.8020296,181.76,181.75,0.32358201]
[1755607769603,15.10621557,181.75,181.73,0.03]
[1755607769804,75.51405347,181.74,181.73,0.03]
[1755607770113,76.23405347,181.74,181.73,0.03]
[1755607770427,66.79791005,181.74,181.73,0.03]
[1755607770633,5.90932847,181.66,181.64,0.69]
[1755607770926,43.66096804,181.65,181.64,0.69]
[1755607771309,43.65876392,181.65,181.64,0.69]
[1755607771899,39.62,181.65,181.64,6.19539528]
[1755607772124,39.62,181.65,181.64,0.69]
[1755607773738,26.0,181.71,181.64,6.19539528]
[1755607773916,52.9044561,181.7,181.65,6.19505823]
[1755607774234,9.26889293,181.68,181.65,0.69]
[1755607774444,43.65556317,181.67,181.65,0.69]
[1755607774673,39.62,181.67,181.65,5.50505246]
[1755607774938,39.62,181.67,181.66,0.69]
[1755607775117,43.66028167,181.67,181.66,0.69]
[1755607776207,0.72,181.74,181.66,15.46368209]
[1755607776450,52.90803146,181.73,181.67,9.95889293]
[1755607776651,4.03913853,181.72,181.68,0.69]
[1755607776857,4.03913853,181.71,181.69,0.69]
[1755607777062,39.62,181.7,181.69,9.26889293]
[1755607777218,39.6,181.7,181.69,9.26889293]
[1755607777612,39.6,181.7,181.69,0.69]
[1755607778124,39.6,181.7,181.69,6.19388023]
[1755607778329,39.6,181.7,181.69,15.46277316]
[1755607778946,39.62,181.71,181.69,6.19388023]
[1755607779246,39.62,181.74,181.7,9.92889293]
[1755607779451,39.62,181.74,181.73,9.26889293]
[1755607779624,43.66498798,181.74,181.73,9.92889293]
[1755607780055,4.04498798,181.74,181.73,9.92889293]
[1755607780227,43.68498798,181.74,181.73,15.43156172]
[1755607780428,43.68631531,181.74,181.73,15.43156172]
[1755607780650,43.68631531,181.74,181.7,0.66]
[1755607780855,4.04735353,181.73,181.71,9.92889293]
[1755607781038,39.64,181.74,181.72,9.26889293]
[1755607781236,4.04749455,181.73,181.72,9.26889293]
[1755607781856,4.04749455,181.73,181.72,14.77186453]
[1755607782349,4.04749455,181.73,181.72,15.43186453]
[1755607783049,43.70749455,181.73,181.72,15.43186453]
[1755607783638,43.70749455,181.73,181.72,14.77186453]
[1755607783839,43.68749455,181.73,181.7,0.66]
[1755607784039,4.04749455,181.72,181.7,9.92889293]
[1755607784220,4.04749455,181.71,181.7,9.26889293]
[1755607784853,4.04749455,181.71,181.69,5.50383933]
[1755607785152,43.66749455,181.7,181.69,5.50383933]
[1755607785353,43.66749455,181.7,181.68,5.50417788]
[1755607785531,43.66749455,181.7,181.67,14.77331466]
[1755607785532,4.04749455,181.69,181.67,14.77331466]
[1755607785730,39.62,181.7,181.67,14.77331466]
[1755607785945,4.05483356,181.69,181.66,14.77368209]
[1755607786151,9.26889293,181.69,181.65,5.50505897]
[1755607786350,13.98307445,181.68,181.62,9.29889293]
[1755607786550,43.65418152,181.67,181.62,9.29889293]
[1755607786732,40.26,181.67,181.62,9.95889293]
[1755607787353,40.26,181.67,181.63,9.26889293]
[1755607787563,40.26,181.67,181.63,0.66]
[1755607787731,0.66,181.69,181.63,0.66]
[1755607787934,43.63567586,181.68,181.63,0.66]
[1755607788147,9.92889293,181.72,181.63,0.66]
[1755607788358,39.6,181.71,181.63,0.66]
[1755607788556,4.05582581,181.7,181.63,0.66]
[1755607788865,39.6,181.69,181.68,9.26889293]
[1755607789046,39.58,181.69,181.65,9.92889293]
[1755607789244,39.58,181.69,181.66,9.26889293]
[1755607789429,39.58,181.69,181.67,5.50448615]
[1755607789757,40.24,181.69,181.64,9.26889293]
[1755607789945,40.24,181.69,181.64,9.92889293]
[1755607790136,39.58,181.69,181.66,9.26889293]
[1755607790465,39.58,181.69,181.67,0.66]
[1755607790644,39.58,181.69,181.66,9.26889293]
[1755607790839,39.58,181.69,181.65,0.66]
[1755607791047,40.24,181.69,181.63,19.26994438]
[1755607791243,3.53132423,181.73,181.64,0.66]
[1755607791448,43.67982265,181.72,181.64,0.66]
[1755607791645,4.05991727,181.71,181.65,5.50509221]
[1755607791848,39.62,181.72,181.68,9.26889293]
[1755607792046,4.06023744,181.71,181.68,9.92889293]
[1755607792250,39.62,181.72,181.68,9.92889293]
[1755607792444,4.06092796,181.71,181.68,6.61415589]
[1755607792647,39.62,181.72,181.68,6.61415589]
[1755607792852,4.06092796,181.71,181.68,6.61415589]
[1755607793038,40.28,181.72,181.67,5.95415589]
[1755607793232,4.06072097,181.71,181.67,5.95415589]
[1755607793433,4.06072097,181.7,181.67,5.95415589]
[1755607793659,0.66,181.71,181.67,5.95415589]
[1755607793846,4.06197591,181.7,181.67,5.50448615]
[1755607794050,0.66,181.71,181.67,5.50448615]
[1755607794234,4.06197862,181.7,181.67,5.50448615]
[1755607794435,4.06197862,181.69,181.67,5.50448615]
[1755607794635,0.66,181.71,181.67,5.50448615]
[1755607794857,4.06532318,181.7,181.67,5.50448615]
[1755607795066,4.06532318,181.69,181.67,5.50448615]
[1755607795363,0.66,181.71,181.67,5.50448615]
[1755607795535,4.06925933,181.7,181.67,5.50448615]
[1755607795737,4.06925933,181.69,181.67,6.61415589]
[1755607795936,39.62,181.72,181.67,6.61415589]